fUST/lending_fUST_20240502
["ID","MTS","AMOUNT","RATE_DAILY","PERIOD"]
[325253709,1714661439331,-500.0,0.00041095,7]
[325253710,1714661439341,-507.0,0.00041095,7]
[325253711,1714661439351,-563.05,0.00041095,7]
[325253712,1714661439360,-500.0,0.00041095,7]
[325253713,1714661439370,-508.46034129,0.00041095,7]
[325253714,1714661439380,-400.21896068,0.00041095,7]
[325253719,1714661441151,-853.86103932,0.00041095,7]
[325253720,1714661441160,-520.52223815,0.00041095,7]
[325253721,1714661441170,-1254.08,0.00041095,7]
[325253722,1714661441179,-1254.08,0.00041095,7]
[325253723,1714661441188,-1254.08,0.00041095,7]
[325253724,1714661441198,-500.0,0.00041095,7]
[325253725,1714661441207,-500.0,0.00041095,7]
[325253726,1714661441217,-500.0,0.00041095,7]
[325253727,1714661441226,-500.0,0.00041095,7]
[325253728,1714661441235,-500.0,0.00041095,7]
[325253729,1714661441245,-500.0,0.00041095,7]
[325253730,1714661441254,-635.48415198,0.00041095,7]
[325253731,1714661441264,-500.0,0.00041095,7]
[325253732,1714661441273,-154.81422293,0.00041095,7]
[325253733,1714661441283,-500.0,0.00041095,7]
[325253734,1714661441292,-1766.34,0.00041095,7]
[325253735,1714661441301,-502.80835986,0.00041095,7]
[325253736,1714661441311,-500.0,0.00041095,7]
[325253737,1714661441320,-1766.34,0.00041095,7]
[325253738,1714661441329,-1766.34,0.00041095,7]
[325253739,1714661441338,-1766.34,0.00041095,7]
[325253740,1714661441347,-700.46,0.00041095,7]
[325253741,1714661441356,-700.46,0.00041095,7]
[325253742,1714661441366,-700.46,0.00041095,7]
[325253743,1714661441450,-700.46,0.00041095,7]
[325253744,1714661441461,-516.68941201,0.00041095,7]
[325253745,1714661441471,-500.0,0.00041095,7]
[325253746,1714661441482,-500.0,0.00041095,7]
[325253747,1714661441494,-504.17905397,0.00041095,7]
[325253748,1714661441503,-500.0,0.00041095,7]
[325253749,1714661441512,-500.0,0.00041095,7]
[325253750,1714661441523,-103.09646549,0.00041095,7]
[325253751,1714661441535,-396.90353451,0.00041095,7]
[325253752,1714661441544,-500.0,0.00041095,7]
[325253753,1714661441553,-503.08664842,0.00041095,7]
[325253754,1714661441563,-500.0,0.00041095,3]
[325253755,1714661441572,-500.0,0.00041095,7]
[325253756,1714661441581,-500.0,0.00041095,7]
[325253757,1714661441591,-500.0,0.00041095,7]
[325253758,1714661441602,-500.0,0.00041095,7]
[325253759,1714661441611,-500.0,0.00041095,7]
[325253760,1714661441620,-500.0,0.00041095,7]
[325253761,1714661441629,-500.0,0.00041095,7]
[325253762,1714661441639,-500.0,0.00041095,7]
[325253763,1714661441648,-500.0,0.00041095,7]
[325253764,1714661441657,-500.0,0.00041095,7]
[325253765,1714661441666,-500.0,0.00041095,7]
[325253766,1714661441675,-500.0,0.00041095,7]
[325253767,1714661441684,-500.0,0.00041095,7]
[325253768,1714661441695,-500.0,0.00041095,7]
[325253769,1714661441705,-500.0,0.00041095,7]
[325253770,1714661441715,-500.0,0.00041095,7]
[325253771,1714661441724,-501.02589686,0.00041095,7]
[325253772,1714661441733,-500.0,0.00041095,7]
[325253773,1714661441742,-500.0,0.00041095,7]
[325253774,1714661441751,-500.0,0.00041095,7]
[325253775,1714661441760,-501.28582001,0.00041095,7]
[325253776,1714661441770,-501.19064348,0.00041095,7]
[325253777,1714661441779,-500.0,0.00041095,7]
[325253778,1714661441788,-500.0,0.00041095,7]
[325253779,1714661441797,-500.0,0.00041095,7]
[325253780,1714661441806,-500.0,0.00041095,7]
[325253781,1714661441815,-500.0,0.00041095,7]
[325253782,1714661441825,-500.0,0.00041095,7]
[325253783,1714661441835,-500.0,0.00041095,7]
[325253784,1714661441844,-500.0,0.00041095,7]
[325253785,1714661441853,-500.0,0.00041095,7]
[325253786,1714661441862,-500.0,0.00041095,7]
[325253787,1714661441871,-500.08252947,0.00041095,7]
[325253788,1714661441880,-500.0,0.00041095,7]
[325253789,1714661441889,-500.0,0.00041095,7]
[325253790,1714661441899,-500.88123822,0.00041095,7]
[325253791,1714661441909,-500.0,0.00041095,7]
[325253792,1714661441919,-500.0,0.00041095,7]
[325253793,1714661441928,-500.0,0.00041095,7]
[325253794,1714661441939,-500.0,0.00041095,7]
[325253795,1714661441950,-530.87,0.00041095,7]
[325253796,1714661441960,-500.0,0.00041095,7]
[325253797,1714661441969,-500.0,0.00041095,7]
[325253798,1714661441979,-500.0,0.00041095,7]
[325253799,1714661441989,-500.0,0.00041095,7]
[325253800,1714661441998,-500.0,0.00041095,7]
[325253801,1714661442007,-235.75,0.00041095,7]
[325253802,1714661442016,-500.0,0.00041095,7]
[325253803,1714661442026,-927.08,0.00041095,7]
[325253804,1714661442036,-927.08,0.00041095,7]
[325253805,1714661442046,-927.08,0.00041095,7]
[325253806,1714661442056,-927.08,0.00041095,7]
[325253807,1714661442066,-2181.36,0.00041095,7]
[325253808,1714661442075,-2181.36,0.00041095,7]
[325253809,1714661442085,-2181.36,0.00041095,7]
[325253810,1714661442094,-500.0,0.00041095,7]
[325253811,1714661442104,-2181.36,0.00041095,7]
[325253812,1714661442114,-302.56098236,0.00041095,7]
[325253813,1714661442123,-500.0,0.00041095,7]
[325253814,1714661442133,-4940.36,0.00041095,7]
[325253815,1714661442142,-4940.36,0.00041095,7]
[325253816,1714661442151,-4940.36,0.00041095,7]
[325253817,1714661442160,-500.0,0.00041095,7]
[325253818,1714661442170,-4940.36,0.00041095,7]
[325253819,1714661442179,-500.0,0.00041095,7]
[325253820,1714661442188,-500.0,0.00041095,7]
[325253821,1714661442198,-500.0,0.00041095,7]
[325253822,1714661442206,-286.82634765,0.00041095,7]
[325253823,1714661442215,-500.0,0.00041095,7]
[325253824,1714661442226,-500.0,0.00041369,7]
[325253825,1714661442236,-500.0,0.00041369,7]
[325253826,1714661442245,-501.53861556,0.00041369,7]
[325253827,1714661442255,-357.09370178,0.0004164,4]
[325253828,1714661442265,-500.0,0.00041643,7]
[325253829,1714661442274,-536.11349103,0.00041643,7]
[325253830,1714661442283,-500.0,0.00041917,7]
[325253831,1714661442292,-500.0,0.00042191,7]
[325253832,1714661442302,-1449.1991577,0.000423,120]
[325253833,1714661442311,-4549.47642928,0.000424,120]
[325253834,1714661442320,-4940.36,0.00042464,7]
[325253835,1714661442330,-508.36997246,0.00042465,7]
[325253836,1714661442339,-301.0,0.0004247,35]
[325253837,1714661442348,-301.0,0.0004248,35]
[325253838,1714661442357,-301.0,0.0004249,35]
[325253839,1714661442367,-500.0,0.00042499,7]
[325253840,1714661442376,-278.52,0.00042499,7]
[325253841,1714661442386,-270.99,0.00042499,7]
[325253842,1714661442395,-151.0,0.00042499,7]
[325253843,1714661442404,-151.0,0.00042499,7]
[325253844,1714661442414,-151.0,0.00042499,7]
[325253845,1714661442423,-151.0,0.00042499,7]
[325253846,1714661442432,-500.0,0.00042499,7]
[325253847,1714661442441,-500.0,0.00042499,7]
[325253848,1714661442451,-500.0,0.00042499,7]
[325253849,1714661442460,-500.0,0.00042499,7]
[325253850,1714661442469,-280.00029576,0.00042499,7]
[325253851,1714661442480,-151.0,0.00042499,7]
[325253852,1714661442489,-1254.08,0.00042499,7]
[325253853,1714661442499,-1254.08,0.00042499,7]
[325253854,1714661442508,-1254.08,0.00042499,7]
[325253855,1714661442518,-1254.08,0.00042499,7]
[325253856,1714661442531,-1254.08,0.00042499,7]
[325253857,1714661442540,-1254.08,0.00042499,7]
[325253858,1714661442550,-1254.08,0.00042499,7]
[325253859,1714661442559,-1254.08,0.00042499,7]
[325253860,1714661442570,-1254.08,0.00042499,7]
[325253861,1714661442579,-1254.08,0.00042499,7]
[325253862,1714661442588,-1254.08,0.00042499,7]
[325253863,1714661442597,-1254.08,0.00042499,7]
[325253864,1714661442607,-1254.08,0.00042499,7]
[325253865,1714661442617,-1254.08,0.00042499,7]
[325253866,1714661442626,-1254.08,0.00042499,7]
[325253867,1714661442636,-1254.08,0.00042499,7]
[325253868,1714661442647,-1254.08,0.00042499,7]
[325253869,1714661442657,-1254.08,0.00042499,7]
[325253870,1714661442666,-1254.08,0.00042499,7]
[325253871,1714661442675,-1254.19088183,0.00042499,7]
[325253872,1714661442685,-639.26504949,0.00042499,7]
[325253873,1714661442694,-1766.34,0.00042499,7]
[325253874,1714661442706,-1766.34,0.00042499,7]
[325253875,1714661442715,-1766.34,0.00042499,7]
[325253876,1714661442725,-1766.34,0.00042499,7]
[325253877,1714661442735,-1766.34,0.00042499,7]
[325253878,1714661442745,-700.46,0.00042499,7]
[325253879,1714661442755,-1766.34,0.00042499,7]
[325253880,1714661442764,-1766.34,0.00042499,7]
[325253881,1714661442774,-1766.34,0.00042499,7]
[325253882,1714661442783,-700.46,0.00042499,7]
[325253883,1714661442792,-1766.34,0.00042499,7]
[325253884,1714661442801,-700.46,0.00042499,7]
[325253885,1714661442810,-1766.34,0.00042499,7]
[325253886,1714661442819,-1766.34,0.00042499,7]
[325253887,1714661442829,-700.46,0.00042499,7]
[325253888,1714661442838,-1766.34,0.00042499,7]
[325253889,1714661442847,-700.46,0.00042499,7]
[325253890,1714661442857,-1766.34,0.00042499,7]
[325253891,1714661442867,-700.46,0.00042499,7]
[325253892,1714661442876,-1766.34,0.00042499,7]
[325253893,1714661442885,-208.39513135,0.00042499,7]
[325253894,1714661442899,-492.06486865,0.00042499,7]
[325253895,1714661442908,-1766.34,0.00042499,7]
[325253896,1714661442917,-700.46,0.00042499,7]
[325253897,1714661442926,-1766.34,0.00042499,7]
[325253898,1714661442935,-700.46,0.00042499,7]
[325253899,1714661442944,-1766.34,0.00042499,7]
[325253900,1714661442953,-1766.34,0.00042499,7]
[325253901,1714661442962,-700.46,0.00042499,7]
[325253902,1714661443043,-1766.34,0.00042499,7]
[325253903,1714661443053,-700.46,0.00042499,7]
[325253904,1714661443062,-1766.34638281,0.00042499,7]
[325253905,1714661443072,-700.46,0.00042499,7]
[325253906,1714661443081,-700.46,0.00042499,7]
[325253907,1714661443091,-700.46,0.00042499,7]
[325253908,1714661443102,-700.46,0.00042499,7]
[325253909,1714661443113,-700.46,0.00042499,7]
[325253910,1714661443123,-700.46,0.00042499,7]
[325253911,1714661443133,-700.46,0.00042499,7]
[325253913,1714661443143,-700.46,0.00042499,7]
[325253915,1714661443154,-130.05674854,0.00042499,7]
[325253925,1714661443327,-2995.29999998,0.00041094,15]
[325253978,1714661443895,-4979.13393136,0.00041094,15]
[325253980,1714661443906,-633.73778147,0.00041095,7]
[325253982,1714661443915,-500.0,0.00041095,7]
[325253984,1714661443924,-500.0,0.00041095,7]
[325253986,1714661443934,-500.0,0.00041095,7]
[325253988,1714661443944,-570.60778835,0.00042499,7]
[325253990,1714661443953,-151.0,0.00042499,7]
[325253992,1714661443962,-151.0,0.00042499,7]
[325253994,1714661443972,-500.0,0.00042499,7]
[325253996,1714661443982,-500.0,0.00042499,7]
[325253998,1714661443991,-500.0,0.00042499,7]
[325254000,1714661444000,-500.0,0.00042499,7]
[325254002,1714661444010,-500.0,0.00042499,7]
[325254004,1714661444019,-500.0,0.00042499,7]
[325254006,1714661444030,-500.0,0.00042499,7]
[325254008,1714661444040,-500.0,0.00042499,7]
[325254010,1714661444050,-151.0,0.00042499,7]
[325254012,1714661444059,-500.0,0.00042499,7]
[325254014,1714661444068,-500.0,0.00042499,7]
[325254016,1714661444077,-151.0,0.00042499,7]
[325254018,1714661444087,-500.0,0.00042499,7]
[325254020,1714661444096,-151.0,0.00042499,7]
[325254022,1714661444105,-500.0,0.00042499,7]
[325254024,1714661444114,-500.0,0.00042499,7]
[325254026,1714661444123,-500.0,0.00042499,7]
[325254028,1714661444132,-500.0,0.00042499,7]
[325254030,1714661444141,-500.0,0.00042499,7]
[325254032,1714661444151,-500.0,0.00042499,7]
[325254033,1714661444160,-500.0,0.00042499,7]
[325254034,1714661444169,-259.00598389,0.00042499,7]
[325254035,1714661444179,-500.0,0.00042499,7]
[325254036,1714661444188,-500.0,0.00042499,7]
[325254037,1714661444198,-500.0,0.00042499,7]
[325254038,1714661444207,-500.0,0.00042499,7]
[325254039,1714661444216,-500.0,0.00042499,7]
[325254040,1714661444226,-500.0,0.00042499,7]
[325254041,1714661444237,-500.0,0.00042499,7]
[325254042,1714661444246,-500.0,0.00042499,7]
[325254043,1714661444256,-500.0,0.00042499,7]
[325254044,1714661444265,-500.0,0.00042499,7]
[325254045,1714661444274,-500.0,0.00042499,7]
[325254046,1714661444284,-500.0,0.00042499,7]
[325254047,1714661444299,-500.0,0.00042499,7]
[325254048,1714661444316,-500.0,0.00042499,7]
[325254049,1714661444332,-500.0,0.00042499,7]
[325254050,1714661444344,-500.0,0.00042499,7]
[325254051,1714661444359,-646.90646619,0.00042499,7]
[325254052,1714661444373,-224.29051,0.00042499,7]
[325254053,1714661444389,-245.40923433,0.00042499,7]
[325254054,1714661444403,-151.0,0.00042499,7]
[325254055,1714661444632,-206.01806,0.00042499,7]
[325254056,1714661444647,-151.0,0.00042499,7]
[325254057,1714661444660,-151.0,0.00042499,7]
[325254058,1714661444674,-151.0,0.00042499,7]
[325254059,1714661444687,-160.279098,0.00042499,7]
[325254060,1714661444701,-160.279098,0.00042499,7]
[325254061,1714661444714,-160.279098,0.00042499,7]
[325254062,1714661444727,-151.0,0.00042499,7]
[325254063,1714661444740,-160.279098,0.00042499,7]
[325254064,1714661444753,-151.0,0.00042499,7]
[325254065,1714661444766,-160.279098,0.00042499,7]
[325254066,1714661444781,-160.279098,0.00042499,7]
[325254067,1714661444795,-500.0,0.00042499,7]
[325254068,1714661444808,-465.51727579,0.00042499,7]
[325254069,1714661444819,-151.0,0.00042499,7]
[325254070,1714661444830,-500.0,0.00042499,7]
[325254071,1714661444844,-151.0,0.00042499,7]
[325254073,1714661444857,-500.0,0.00042499,7]
[325254074,1714661444870,-151.0,0.00042499,7]
[325254075,1714661444881,-500.0,0.00042499,7]
[325254077,1714661444893,-500.0,0.00042499,7]
[325254078,1714661444907,-500.0,0.00042499,7]
[325254079,1714661444918,-500.0,0.00042499,7]
[325254080,1714661444929,-500.0,0.00042499,7]
[325254081,1714661444940,-500.0,0.00042499,7]
[325254082,1714661444951,-500.0,0.00042499,7]
[325254083,1714661444963,-500.0,0.00042499,7]
[325254084,1714661444974,-500.0,0.00042499,7]
[325254085,1714661444988,-500.0,0.00042499,7]
[325254086,1714661445000,-357.02327243,0.00042499,7]
[325254087,1714661445012,-258.051194,0.00042499,7]
[325254088,1714661445023,-151.0,0.00042499,7]
[325254089,1714661445035,-151.0,0.00042499,7]
[325254090,1714661445047,-151.0,0.00042499,7]
[325254091,1714661445058,-513.20765814,0.00042499,7]
[325254092,1714661445069,-151.0,0.00042499,7]
[325254093,1714661445080,-151.0,0.00042499,7]
[325254094,1714661445092,-151.0,0.00042499,7]
[325254095,1714661445103,-927.08,0.00042499,7]
[325254096,1714661445115,-927.08,0.00042499,7]
[325254097,1714661445126,-927.08,0.00042499,7]
[325254098,1714661445138,-2181.36,0.00042499,7]
[325254099,1714661445150,-2181.36,0.00042499,7]
[325254100,1714661445161,-927.08,0.00042499,7]
[325254101,1714661445173,-927.08,0.00042499,7]
[325254102,1714661445185,-2181.36,0.00042499,7]
[325254103,1714661445197,-927.08,0.00042499,7]
[325254104,1714661445209,-2181.36,0.00042499,7]
[325254105,1714661445221,-927.08,0.00042499,7]
[325254106,1714661445236,-2181.36,0.00042499,7]
[325254107,1714661445247,-927.08,0.00042499,7]
[325254108,1714661445259,-2181.36,0.00042499,7]
[325254109,1714661445270,-927.08,0.00042499,7]
[325254110,1714661445282,-2181.36,0.00042499,7]
[325254111,1714661445294,-927.08,0.00042499,7]
[325254112,1714661445303,-2181.36,0.00042499,7]
[325254113,1714661445313,-927.08,0.00042499,7]
[325254114,1714661445323,-2181.36,0.00042499,7]
[325254115,1714661445333,-927.08,0.00042499,7]
[325254116,1714661445343,-2181.36,0.00042499,7]
[325254117,1714661445353,-151.0,0.00042499,7]
[325254118,1714661445362,-927.08,0.00042499,7]
[325254119,1714661445372,-2181.36,0.00042499,7]
[325254120,1714661445381,-927.08,0.00042499,7]
[325254121,1714661445512,-151.0,0.00042499,7]
[325254122,1714661445530,-2181.36,0.00042499,7]
[325254123,1714661445551,-927.08,0.00042499,7]
[325254124,1714661445560,-2181.36,0.00042499,7]
[325254125,1714661445570,-927.08,0.00042499,7]
[325254126,1714661445580,-2181.36,0.00042499,7]
[325254127,1714661445590,-927.08,0.00042499,7]
[325254128,1714661445599,-2181.36,0.00042499,7]
[325254129,1714661445609,-927.08,0.00042499,7]
[325254130,1714661445618,-2181.36,0.00042499,7]
[325254131,1714661445628,-927.08,0.00042499,7]
[325254132,1714661445638,-2181.36,0.00042499,7]
[325254133,1714661445648,-927.09987881,0.00042499,7]
[325254134,1714661445658,-4940.36,0.00042499,7]
[325254135,1714661445667,-2181.36,0.00042499,7]
[325254136,1714661445676,-4940.36,0.00042499,7]
[325254137,1714661445686,-2181.36,0.00042499,7]
[325254138,1714661445698,-4940.36,0.00042499,7]
[325254139,1714661445709,-2181.40404773,0.00042499,7]
[325254140,1714661445719,-4940.36,0.00042499,7]
[325254141,1714661445731,-4940.36,0.00042499,7]
[325254142,1714661445740,-4940.36,0.00042499,7]
[325254143,1714661445749,-4940.36,0.00042499,7]
[325254144,1714661445758,-500.0,0.00042499,7]
[325254145,1714661445767,-4940.36,0.00042499,7]
[325254146,1714661445776,-500.0,0.00042499,7]
[325254147,1714661445785,-500.0,0.00042499,7]
[325254148,1714661445795,-4940.36,0.00042499,7]
[325254149,1714661445804,-500.0,0.00042499,7]
[325254150,1714661445812,-4940.36,0.00042499,7]
[325254151,1714661445822,-500.905708,0.00042499,7]
[325254152,1714661445831,-4940.36,0.00042499,7]
[325254153,1714661445842,-4940.36,0.00042499,7]
[325254154,1714661445851,-4940.36,0.00042499,7]
[325254155,1714661445860,-836230.17916623,0.000425,60]
[325254156,1714661445968,-608.47002678,0.000425,60]
[325254157,1714661445980,-996.06018726,0.000425,60]
[325254159,1714661451726,154.70605849,9.999e-05,2]
[325254160,1714661476717,154.70605849,9.999e-05,2]
[325254161,1714661488943,164.15031507,9.999e-05,2]
[325254162,1714661499484,154.70605849,9.999e-05,2]
[325254163,1714661516811,186.38755187,9.999e-05,2]
[325254164,1714661529359,154.70605849,9.999e-05,2]
[325254165,1714661530477,513.62826991,9.999e-05,2]
[325254166,1714661533501,154.70605849,9.999e-05,2]
[325254167,1714661538093,154.70605849,9.999e-05,2]
[325254168,1714661652666,965.549001,0.000199,2]
[325254169,1714661654459,17984.5228394,0.000199,2]
[325254170,1714661889436,386.8961582,0.00019885,2]
[325254171,1714661994009,2303.8124419,0.00019879,2]
[325254172,1714661995977,250.0,0.00019879,2]
[325254173,1714662018195,154.70605849,9.999e-05,2]
[325254174,1714662019376,154.70605849,9.999e-05,2]
[325254175,1714662041407,154.70605849,9.999e-05,2]
[325254176,1714662051549,4543.1226944,0.0001987,2]
[325254177,1714662054987,154.70605849,9.999e-05,2]
[325254178,1714662056203,154.70605849,9.999e-05,2]
[325254179,1714662068778,154.70605849,9.999e-05,2]
[325254180,1714662078244,154.7215013,9.999e-05,2]
[325254181,1714662090657,154.7215013,9.999e-05,2]
[325254182,1714662171525,24900.0,0.00019843,2]
[325254183,1714662194159,482.7745,0.0001984,2]
[325254184,1714662346556,208.17446102,9.999e-05,2]
[325254185,1714662414009,154.7215013,9.999e-05,2]
[325254186,1714662482487,308.93521701,9.999e-05,2]
[325254187,1714662505660,250.0,0.00019799,2]
[325254188,1714662545004,815.53341736,9.999e-05,2]
[325254189,1714662582513,2084.16790496,9.999e-05,2]
[325254208,1714662640186,-245.37226001,0.0002059,2]
[325254210,1714662640195,-154.7215013,0.00020684,2]
[325254211,1714662640210,-154.7215013,0.00020684,2]
[325254212,1714662640221,-775.19684388,0.00020684,2]
[325254213,1714662640230,-522.27929623,0.00020684,2]
[325254214,1714662640240,-1880.38106001,0.00020685,2]
[325254215,1714662640249,-469.0831444,0.00020685,2]
[325254216,1714662640258,-174.65132849,0.00020685,2]
[325254217,1714662640268,-527.05896574,0.00020685,2]
[325254218,1714662640277,-154.7215013,0.00020686,2]
[325254219,1714662640286,-3052.13238877,0.00020686,2]
[325254220,1714662640295,-154.7215013,0.00020687,2]
[325254221,1714662640304,-2627.42239968,0.00020687,2]
[325254222,1714662640314,-154.7215013,0.00020687,2]
[325254223,1714662640324,-565.22621102,0.00020687,2]
[325254224,1714662640333,-1313.56424433,0.00020687,2]
[325254225,1714662640342,-362.43735535,0.00020688,2]
[325254226,1714662640352,-154.7215013,0.00020688,2]
[325254227,1714662640361,-412.33320126,0.00020688,2]
[325254228,1714662640370,-5811.26837333,0.00020689,2]
[325254229,1714662640379,-7876.33653411,0.00020689,2]
[325254230,1714662640389,-158.01446209,0.0002069,2]
[325254231,1714662640398,-583.7230286,0.0002069,2]
[325254232,1714662640407,-15678.27203672,0.0002069,2]
[325254233,1714662640416,-891.13661831,0.00020691,2]
[325254234,1714662640426,-20203.63437207,0.00020692,2]
[325254235,1714662640435,-994.00709491,0.00020693,2]
[325254236,1714662640444,-551.84117837,0.00020891,2]
[325254237,1714662640454,-994.00709489,0.00025769,2]
[325254238,1714662640466,-161.249438,0.00028493,2]
[325254239,1714662640476,-163.312678,0.00028493,2]
[325254240,1714662640485,-321.9,0.00029025,3]
[325254241,1714662640494,-482.7745,0.0002976,2]
[325254242,1714662640504,-994.00709489,0.00030844,2]
[325254243,1714662640513,-994.00709489,0.0003592,2]
[325254244,1714662640523,-163.312678,0.00036839,2]
[325254245,1714662640532,-185.9439975,0.00038248,30]
[325254246,1714662640541,-154.79876161,0.00039038,4]
[325254247,1714662640550,-1281.92127044,0.00039997,4]
[325254248,1714662640559,-599.09983187,0.00039997,4]
[325254249,1714662640569,-1184.25149599,0.00039999,4]
[325254250,1714662640579,-154.75239617,0.0004,15]
[325254251,1714662640588,-150.0,0.00040406,2]
[325254252,1714662640597,-994.00709489,0.00040995,2]
[325254253,1714662640630,-23477.90251468,0.00040995,5]
[325254254,1714662640716,-1269.72,0.00041082,3]
[325254255,1714662640725,-1523.67,0.00041083,3]
[325254256,1714662640735,-907.8166184,0.00041092,4]
[325254257,1714662640744,-7956.24684653,0.00041093,7]
[325254258,1714662640753,-154.70605849,0.00041093,4]
[325254259,1714662640763,-162.3553082,0.00041093,4]
[325254260,1714662640773,-187.28315361,0.00041093,4]
[325254261,1714662640783,-171.63945744,0.00041093,4]
[325254262,1714662640792,-156.8715539,0.00041093,4]
[325254263,1714662640801,-307.40043956,0.00041093,4]
[325254264,1714662640810,-244.71802981,0.00041093,4]
[325254265,1714662640819,-155.02993115,0.00041093,4]
[325254266,1714662640828,-225.9717857,0.00041093,4]
[325254267,1714662640838,-294.74552526,0.00041093,4]
[325254268,1714662640848,-266.67766271,0.00041093,4]
[325254269,1714662640857,-155.99365888,0.00041093,4]
[325254270,1714662640868,-155.56845653,0.00041093,4]
[325254271,1714662640879,-2106.44431374,0.00041093,4]
[325254272,1714662640888,-161.87992514,0.00041093,4]
[325254273,1714662640901,-212.22553252,0.00041093,4]
[325254274,1714662640912,-378.96857532,0.00041093,4]
[325254275,1714662640921,-303.87617266,0.00041093,4]
[325254276,1714662640931,-250.54875952,0.00041093,4]
[325254277,1714662640941,-285.56064215,0.00041093,4]
[325254278,1714662640950,-155.13605303,0.00041093,4]
[325254279,1714662640962,-162.75206761,0.00041093,4]
[325254280,1714662640972,-154.98298826,0.00041093,4]
[325254281,1714662640982,-208.41601451,0.00041093,4]
[325254282,1714662640992,-277.02818708,0.00041093,4]
[325254283,1714662641002,-155.62299292,0.00041093,4]
[325254284,1714662641011,-204.76876405,0.00041093,4]
[325254285,1714662641021,-186.57349233,0.00041093,4]
[325254286,1714662641031,-159.04542774,0.00041093,4]
[325254287,1714662641040,-307.028517,0.00041093,4]
[325254288,1714662641050,-187.31159418,0.00041093,4]
[325254289,1714662641059,-275.02179665,0.00041093,4]
[325254290,1714662641069,-155.70039585,0.00041093,4]
[325254291,1714662641078,-155.47935408,0.00041093,4]
[325254292,1714662641088,-200.12403137,0.00041093,4]
[325254293,1714662641097,-155.44045026,0.00041093,4]
[325254294,1714662641107,-155.56753223,0.00041093,4]
[325254295,1714662641117,-155.76470997,0.00041093,4]
[325254296,1714662641128,-1857.24866168,0.00041093,4]
[325254297,1714662641138,-359.45320568,0.00041093,4]
[325254298,1714662641147,-157.04215406,0.00041093,4]
[325254299,1714662641156,-234.96752431,0.00041093,4]
[325254300,1714662641166,-164.20775399,0.00041094,4]
[325254301,1714662641176,-500.0,0.00041095,7]
[325254302,1714662641185,-500.0,0.00041095,7]
[325254303,1714662641197,-500.0,0.00041095,7]
[325254304,1714662641211,-500.0,0.00041095,7]
[325254305,1714662641220,-369.01831701,0.00041095,7]
[325254306,1714662641229,-500.0,0.00041095,7]
[325254307,1714662641240,-500.0,0.00041095,7]
[325254308,1714662641250,-500.0,0.00041095,7]
[325254309,1714662641259,-518.79676694,0.00041095,7]
[325254310,1714662641268,-500.0,0.00041095,7]
[325254311,1714662641278,-500.0,0.00041095,7]
[325254312,1714662641287,-500.0,0.00041095,7]
[325254313,1714662641295,-500.0,0.00041095,7]
[325254314,1714662641305,-500.0,0.00041095,7]
[325254315,1714662641314,-500.0,0.00041095,7]
[325254316,1714662641323,-500.0,0.00041095,7]
[325254317,1714662641333,-500.0,0.00041095,7]
[325254318,1714662641342,-200.0,0.00041095,7]
[325254319,1714662641351,-352.19897217,0.00041095,7]
[325254320,1714662641360,-501.56158891,0.00041095,7]
[325254321,1714662641370,-500.0,0.00041095,30]
[325254322,1714662641379,-503.72909841,0.00041095,7]
[325254323,1714662641388,-500.0,0.00041095,7]
[325254324,1714662641398,-505.13594109,0.00041095,7]